[Event "*** Titled Tuesday Blitz"]
[Site "Chess.com"]
[Date "2020.11.10"]
[Round "11"]
[White "blitzking1729"]
[Black "Grieve72"]
[Result "1-0"]
[WhiteElo "2544"]
[BlackElo "2394"]
[TimeControl "180+1"]
[EndTime "12:12:39 PST"]
[Termination "blitzking1729 won on time"]

1. d4 {[%clk 0:03:00.9]} 1... d5 {[%clk 0:02:59]} 2. c4 {[%clk 0:03:00]} 2... e6
{[%clk 0:02:59.3]} 3. Nc3 {[%clk 0:02:59.5]} 3... c6 {[%clk 0:02:59.5]} 4. e4
{[%clk 0:02:58.4]} 4... dxe4 {[%clk 0:02:59.8]} 5. Nxe4 {[%clk 0:02:57.7]} 5...
Bb4+ {[%clk 0:03:00.4]} 6. Nc3 {[%clk 0:02:57.2]} 6... c5 {[%clk 0:03:00.5]} 7.
Nf3 {[%clk 0:02:55.2]} 7... Nf6 {[%clk 0:03:00.6]} 8. Be3 {[%clk 0:02:54.2]}
8... O-O {[%clk 0:02:56.6]} 9. Be2 {[%clk 0:02:51.8]} 9... Nc6 {[%clk
0:02:54.1]} 10. O-O {[%clk 0:02:50]} 10... Ng4 {[%clk 0:02:39.7]} 11. d5 {[%clk
0:02:38]} 11... Nxe3 {[%clk 0:02:32.7]} 12. fxe3 {[%clk 0:02:36.2]} 12... Bxc3
{[%clk 0:02:22.4]} 13. bxc3 {[%clk 0:02:32.7]} 13... Na5 {[%clk 0:02:16.8]} 14.
e4 {[%clk 0:02:30.6]} 14... b6 {[%clk 0:02:12]} 15. Bd3 {[%clk 0:02:24.1]} 15...
Ba6 {[%clk 0:02:07.4]} 16. Qe2 {[%clk 0:02:23.8]} 16... Re8 {[%clk 0:01:37.8]}
17. Rad1 {[%clk 0:02:10.7]} 17... e5 {[%clk 0:01:27.3]} 18. h4 {[%clk
0:02:02.8]} 18... Nb7 {[%clk 0:01:25.5]} 19. Ng5 {[%clk 0:01:58.3]} 19... f6
{[%clk 0:01:05.8]} 20. Ne6 {[%clk 0:01:56.6]} 20... Qe7 {[%clk 0:01:02.5]} 21.
Qg4 {[%clk 0:01:54.2]} 21... Nd6 {[%clk 0:00:58.8]} 22. Rf3 {[%clk 0:01:51.7]}
22... Bc8 {[%clk 0:00:49.9]} 23. Rg3 {[%clk 0:01:46.1]} 23... Bxe6 {[%clk
0:00:46.2]} 24. dxe6 {[%clk 0:01:44.9]} 24... Rad8 {[%clk 0:00:46.7]} 25. Be2
{[%clk 0:01:42.9]} 25... g6 {[%clk 0:00:32.6]} 26. h5 {[%clk 0:01:40.5]} 26...
g5 {[%clk 0:00:32.9]} 27. Rgd3 {[%clk 0:01:38.5]} 27... Kf8 {[%clk 0:00:11.4]}
28. Qh3 {[%clk 0:01:26.4]} 28... h6 {[%clk 0:00:06.5]} 29. Bg4 {[%clk
0:01:24.7]} 29... Nxe4 {[%clk 0:00:04.7]} 30. Rd7 {[%clk 0:01:21.3]} 30... Rxd7
{[%clk 0:00:04.9]} 31. Rxd7 {[%clk 0:01:18.6]} 31... Rd8 {[%clk 0:00:04.2]} 32.
Rxe7 {[%clk 0:01:16.9]} 32... Kxe7 {[%clk 0:00:05.1]} 33. Qe3 {[%clk 0:01:13.6]}
33... Nd6 {[%clk 0:00:03.6]} 34. Qe2 {[%clk 0:01:07.3]} 34... f5 {[%clk
0:00:03.1]} 35. Bxf5 {[%clk 0:01:00.7]} 35... Nxf5 {[%clk 0:00:02.7]} 36. Qxe5
{[%clk 0:01:00.8]} 36... Nd6 {[%clk 0:00:02.3]} 37. Qg7+ {[%clk 0:00:59.2]}
37... Kxe6 {[%clk 0:00:02.5]} 38. Qxh6+ {[%clk 0:00:59]} 38... Kf5 {[%clk
0:00:02.3]} 39. Qg6+ {[%clk 0:00:58.8]} 39... Kg4 {[%clk 0:00:01.4]} 40. Qf6
{[%clk 0:00:49]} 1-0

[Event "*** Titled Tuesday Blitz"]
[Site "Chess.com"]
[Date "2020.11.10"]
[Round "11"]
[White "DonPreuss"]
[Black "picturesquecheck"]
[Result "1-0"]
[WhiteElo "2233"]
[BlackElo "2099"]
[TimeControl "180+1"]
[EndTime "12:12:41 PST"]
[Termination "DonPreuss won by checkmate"]

1. d4 {[%clk 0:02:51.6]} 1... Nf6 {[%clk 0:02:57.2]} 2. Nc3 {[%clk 0:02:51.5]}
2... d5 {[%clk 0:02:56.1]} 3. e4 {[%clk 0:02:52]} 3... dxe4 {[%clk 0:02:54.8]}
4. f3 {[%clk 0:02:52.5]} 4... exf3 {[%clk 0:02:48.6]} 5. Nxf3 {[%clk 0:02:52.3]}
5... Bg4 {[%clk 0:02:40.6]} 6. h3 {[%clk 0:02:51.5]} 6... Bxf3 {[%clk
0:02:29.2]} 7. Qxf3 {[%clk 0:02:52.4]} 7... c6 {[%clk 0:02:29.6]} 8. Qf2 {[%clk
0:02:52.3]} 8... e6 {[%clk 0:02:28.1]} 9. Bd3 {[%clk 0:02:52.2]} 9... Be7 {[%clk
0:02:21.6]} 10. O-O {[%clk 0:02:52.5]} 10... O-O {[%clk 0:02:20.5]} 11. Qh4
{[%clk 0:02:52.1]} 11... g6 {[%clk 0:02:05]} 12. Bh6 {[%clk 0:02:48]} 12... Re8
{[%clk 0:02:04.1]} 13. Bg5 {[%clk 0:02:48.1]} 13... Nd5 {[%clk 0:02:01.1]} 14.
Ne4 {[%clk 0:02:46.8]} 14... f5 {[%clk 0:01:56.1]} 15. Bxe7 {[%clk 0:02:31]}
15... Qxe7 {[%clk 0:01:54.7]} 16. Ng5 {[%clk 0:02:29.9]} 16... Nd7 {[%clk
0:01:46.2]} 17. Rae1 {[%clk 0:02:29.7]} 17... Nf8 {[%clk 0:01:45.2]} 18. c4
{[%clk 0:02:27.9]} 18... Nb4 {[%clk 0:01:32.6]} 19. Bb1 {[%clk 0:02:26.3]} 19...
Rad8 {[%clk 0:01:29.3]} 20. a3 {[%clk 0:02:25.7]} 20... Na6 {[%clk 0:01:27.8]}
21. d5 {[%clk 0:01:55.8]} 21... cxd5 {[%clk 0:01:25.4]} 22. cxd5 {[%clk
0:01:55.6]} 22... Qc5+ {[%clk 0:01:25.9]} 23. Kh1 {[%clk 0:01:55.2]} 23... Qxd5
{[%clk 0:01:26]} 24. Be4 {[%clk 0:01:16.3]} 24... Qd7 {[%clk 0:01:18.5]} 25. Bb1
{[%clk 0:01:05.4]} 25... Qd4 {[%clk 0:01:11.3]} 26. Rf4 {[%clk 0:01:02.8]} 26...
Qxb2 {[%clk 0:00:58.3]} 27. Rf2 {[%clk 0:00:58.4]} 27... Qg7 {[%clk 0:00:56.1]}
28. Ba2 {[%clk 0:00:57.6]} 28... Nc7 {[%clk 0:00:54.8]} 29. Rc2 {[%clk
0:00:55.2]} 29... Nd5 {[%clk 0:00:52.5]} 30. Rce2 {[%clk 0:00:52.7]} 30... Nc7
{[%clk 0:00:45.2]} 31. Qc4 {[%clk 0:00:46.4]} 31... b5 {[%clk 0:00:24.5]} 32.
Qc6 {[%clk 0:00:36]} 32... Qd7 {[%clk 0:00:20.7]} 33. Qb7 {[%clk 0:00:35.4]}
33... Nd5 {[%clk 0:00:18.1]} 34. Bxd5 {[%clk 0:00:32.8]} 34... Qxd5 {[%clk
0:00:17.4]} 35. Qf7+ {[%clk 0:00:31.1]} 35... Kh8 {[%clk 0:00:16.5]} 36. Qf6+
{[%clk 0:00:28.4]} 36... Kg8 {[%clk 0:00:15.2]} 37. Qf7+ {[%clk 0:00:28.3]}
37... Kh8 {[%clk 0:00:14.1]} 38. Qf6+ {[%clk 0:00:26.3]} 38... Kg8 {[%clk
0:00:14.1]} 39. Nf7 {[%clk 0:00:26.8]} 39... Qd4 {[%clk 0:00:08.2]} 40. Nh6#
{[%clk 0:00:26.6]} 1-0

[Event "*** Titled Tuesday Blitz"]
[Site "Chess.com"]
[Date "2020.11.10"]
[Round "11"]
[White "narutosmith"]
[Black "zajka-molotok"]
[Result "1-0"]
[WhiteElo "2323"]
[BlackElo "2476"]
[TimeControl "180+1"]
[EndTime "12:12:44 PST"]
[Termination "narutosmith won by resignation"]

1. d4 {[%clk 0:03:00.9]} 1... c5 {[%clk 0:02:57.2]} 2. d5 {[%clk 0:03:00.3]}
2... e5 {[%clk 0:02:56.8]} 3. Nc3 {[%clk 0:03:00]} 3... d6 {[%clk 0:02:55.7]} 4.
e4 {[%clk 0:03:00.1]} 4... Be7 {[%clk 0:02:56]} 5. f4 {[%clk 0:02:57.6]} 5...
exf4 {[%clk 0:02:51.9]} 6. Bxf4 {[%clk 0:02:56.9]} 6... Bg5 {[%clk 0:02:42.2]}
7. Qd2 {[%clk 0:02:47]} 7... Bxf4 {[%clk 0:02:41.3]} 8. Qxf4 {[%clk 0:02:47.9]}
8... Ne7 {[%clk 0:02:38.3]} 9. Nb5 {[%clk 0:02:26.2]} 9... O-O {[%clk
0:02:32.8]} 10. Qxd6 {[%clk 0:02:21.7]} 10... Qa5+ {[%clk 0:02:31.1]} 11. c3
{[%clk 0:02:15.5]} 11... Ng6 {[%clk 0:02:26.4]} 12. Nc7 {[%clk 0:02:07.2]} 12...
Nd7 {[%clk 0:02:10.9]} 13. Nxa8 {[%clk 0:02:05.2]} 13... Nde5 {[%clk 0:02:10.4]}
14. Qc7 {[%clk 0:01:26.7]} 14... b6 {[%clk 0:02:02.9]} 15. Nf3 {[%clk
0:01:00.4]} 15... Nxf3+ {[%clk 0:01:49.6]} 16. gxf3 {[%clk 0:01:01.3]} 16... Qa4
{[%clk 0:01:23.6]} 17. Qg3 {[%clk 0:00:45.3]} 17... f5 {[%clk 0:01:17.5]} 18.
Bd3 {[%clk 0:00:35.8]} 18... c4 {[%clk 0:01:10.9]} 19. Bb1 {[%clk 0:00:30.5]}
19... Qb5 {[%clk 0:00:58.1]} 20. Qf2 {[%clk 0:00:19.5]} 20... Ne5 {[%clk
0:00:49.7]} 21. O-O {[%clk 0:00:17.6]} 21... f4 {[%clk 0:00:44.5]} 22. Nc7
{[%clk 0:00:16.4]} 22... Qd7 {[%clk 0:00:35.5]} 23. Ne6 {[%clk 0:00:16.5]} 23...
Rf6 {[%clk 0:00:35.8]} 24. Bc2 {[%clk 0:00:14.3]} 24... Qf7 {[%clk 0:00:34.6]}
25. Kh1 {[%clk 0:00:13.7]} 25... Qh5 {[%clk 0:00:34.6]} 26. Rg1 {[%clk
0:00:11.4]} 26... Nxf3 {[%clk 0:00:24.5]} 27. Bd1 {[%clk 0:00:10.5]} 27... Rh6
{[%clk 0:00:17.8]} 28. Bxf3 {[%clk 0:00:10.3]} 28... Qh3 {[%clk 0:00:15.9]} 29.
Rxg7+ {[%clk 0:00:10.1]} 29... Kh8 {[%clk 0:00:15.5]} 30. Qg2 {[%clk 0:00:10.6]}
30... Bxe6 {[%clk 0:00:14.6]} 31. dxe6 {[%clk 0:00:09]} 31... Qxe6 {[%clk
0:00:14.3]} 32. e5 {[%clk 0:00:07.8]} 32... Rg6 {[%clk 0:00:12.4]} 33. Rxg6
{[%clk 0:00:07.7]} 33... hxg6 {[%clk 0:00:13.3]} 34. Rg1 {[%clk 0:00:07.5]}
34... Qxe5 {[%clk 0:00:13.7]} 35. Qxg6 {[%clk 0:00:07.4]} 1-0

[Event "*** Titled Tuesday Blitz"]
[Site "Chess.com"]
[Date "2020.11.10"]
[Round "11"]
[White "biostatistician"]
[Black "vovachesss"]
[Result "1-0"]
[WhiteElo "2546"]
[BlackElo "2658"]
[TimeControl "180+1"]
[EndTime "12:12:45 PST"]
[Termination "biostatistician won on time"]

1. d4 {[%clk 0:02:57.5]} 1... Nc6 {[%clk 0:02:57.5]} 2. Nf3 {[%clk 0:02:58.4]}
2... d6 {[%clk 0:02:57.3]} 3. d5 {[%clk 0:02:58.6]} 3... Ne5 {[%clk 0:02:57.2]}
4. Nxe5 {[%clk 0:02:59.2]} 4... dxe5 {[%clk 0:02:58.1]} 5. e4 {[%clk 0:02:59.7]}
5... Nf6 {[%clk 0:02:58.1]} 6. Nc3 {[%clk 0:02:55.2]} 6... g6 {[%clk 0:02:55.3]}
7. f3 {[%clk 0:02:51.4]} 7... Bg7 {[%clk 0:02:55.7]} 8. Bb5+ {[%clk 0:02:50.6]}
8... Bd7 {[%clk 0:02:55.5]} 9. Qe2 {[%clk 0:02:50.2]} 9... O-O {[%clk
0:02:53.9]} 10. O-O {[%clk 0:02:50.3]} 10... e6 {[%clk 0:02:53.9]} 11. Rd1
{[%clk 0:02:46.3]} 11... exd5 {[%clk 0:02:52.3]} 12. Nxd5 {[%clk 0:02:44.7]}
12... Nxd5 {[%clk 0:02:23.9]} 13. Bxd7 {[%clk 0:02:30.8]} 13... Nf4 {[%clk
0:01:58.9]} 14. Bxf4 {[%clk 0:02:28.8]} 14... exf4 {[%clk 0:01:58.5]} 15. c3
{[%clk 0:02:25.9]} 15... c6 {[%clk 0:01:56]} 16. Rd3 {[%clk 0:02:25.2]} 16...
Qb6+ {[%clk 0:01:47.9]} 17. Qf2 {[%clk 0:02:25.2]} 17... Qa6 {[%clk 0:01:44.9]}
18. Qd2 {[%clk 0:02:12.6]} 18... Rfd8 {[%clk 0:01:43]} 19. b3 {[%clk 0:02:12.4]}
19... Bf8 {[%clk 0:01:39.2]} 20. Rd1 {[%clk 0:02:09.5]} 20... Bc5+ {[%clk
0:01:38.8]} 21. Kh1 {[%clk 0:02:10]} 21... Be3 {[%clk 0:01:39.7]} 22. Qb2 {[%clk
0:02:00.8]} 22... Rac8 {[%clk 0:01:15.5]} 23. c4 {[%clk 0:01:59.1]} 23... Rc7
{[%clk 0:01:10.7]} 24. Qf6 {[%clk 0:01:58.8]} 24... Rf8 {[%clk 0:01:03.7]} 25.
e5 {[%clk 0:01:54]} 25... c5 {[%clk 0:00:18.7]} 26. e6 {[%clk 0:01:52.5]} 26...
Bd4 {[%clk 0:00:18.3]} 27. exf7+ {[%clk 0:01:35.3]} 27... Rxf7 {[%clk
0:00:16.6]} 28. Qd8+ {[%clk 0:01:35.7]} 28... Kg7 {[%clk 0:00:12.7]} 29. Qxc7
{[%clk 0:01:36]} 29... Qf6 {[%clk 0:00:11.2]} 30. Qc8 {[%clk 0:01:31.9]} 30...
Re7 {[%clk 0:00:11.1]} 31. Rf1 {[%clk 0:01:09.6]} 31... Qh4 {[%clk 0:00:10.1]}
32. Rdd1 {[%clk 0:01:04.1]} 32... h5 {[%clk 0:00:07]} 33. Bh3 {[%clk 0:00:59.2]}
33... Re2 {[%clk 0:00:04.5]} 34. Qxb7+ {[%clk 0:00:57.3]} 34... Kh6 {[%clk
0:00:04.4]} 35. Qb8 {[%clk 0:00:54.6]} 35... Qf6 {[%clk 0:00:03.4]} 36. Rde1
{[%clk 0:00:51.3]} 36... Rxa2 {[%clk 0:00:02]} 37. Re6 {[%clk 0:00:49.2]} 37...
Qg7 {[%clk 0:00:01.5]} 38. Qe8 {[%clk 0:00:44.4]} 38... Be3 {[%clk 0:00:01.5]}
39. Re7 {[%clk 0:00:44.2]} 39... Ra1 {[%clk 0:00:01.1]} 40. g3 {[%clk 0:00:40]}
1-0

[Event "*** Titled Tuesday Blitz"]
[Site "Chess.com"]
[Date "2020.11.10"]
[Round "11"]
[White "gumimis"]
[Black "zmeeed67"]
[Result "1-0"]
[WhiteElo "2226"]
[BlackElo "2349"]
[TimeControl "180+1"]
[EndTime "12:12:45 PST"]
[Termination "gumimis won by resignation"]

1. e4 {[%clk 0:02:59.6]} 1... Nc6 {[%clk 0:03:00.2]} 2. d4 {[%clk 0:02:58.1]}
2... d6 {[%clk 0:03:00.1]} 3. f4 {[%clk 0:02:53.9]} 3... Nf6 {[%clk 0:02:58.9]}
4. e5 {[%clk 0:02:49.3]} 4... dxe5 {[%clk 0:02:57.7]} 5. fxe5 {[%clk 0:02:49.4]}
5... Nd5 {[%clk 0:02:57.6]} 6. c4 {[%clk 0:02:37.2]} 6... Nb6 {[%clk 0:02:57.2]}
7. Be3 {[%clk 0:02:32.3]} 7... Bf5 {[%clk 0:02:52.2]} 8. Nc3 {[%clk 0:02:30.2]}
8... e6 {[%clk 0:02:51.8]} 9. Nf3 {[%clk 0:02:22.8]} 9... Be7 {[%clk 0:02:49.9]}
10. Be2 {[%clk 0:02:20.4]} 10... O-O {[%clk 0:02:49.3]} 11. O-O {[%clk
0:02:20.4]} 11... h6 {[%clk 0:02:48.8]} 12. a3 {[%clk 0:02:18.4]} 12... a5
{[%clk 0:02:06.4]} 13. d5 {[%clk 0:02:15.3]} 13... exd5 {[%clk 0:01:49.9]} 14.
cxd5 {[%clk 0:02:13.4]} 14... Nb8 {[%clk 0:01:41]} 15. Bxb6 {[%clk 0:01:38.2]}
15... cxb6 {[%clk 0:01:39]} 16. d6 {[%clk 0:01:38.2]} 16... Bg5 {[%clk
0:01:34.6]} 17. Nxg5 {[%clk 0:01:33.1]} 17... Qxg5 {[%clk 0:01:34.5]} 18. Qd4
{[%clk 0:01:30]} 18... Nc6 {[%clk 0:01:30.4]} 19. Qf4 {[%clk 0:01:24.6]} 19...
Be6 {[%clk 0:01:17.7]} 20. Qxg5 {[%clk 0:01:11.2]} 20... hxg5 {[%clk 0:01:17]}
21. Bf3 {[%clk 0:01:06.8]} 21... Nxe5 {[%clk 0:01:14.4]} 22. Bxb7 {[%clk
0:01:06.8]} 22... Rad8 {[%clk 0:01:12]} 23. Rad1 {[%clk 0:01:05.9]} 23... Nc4
{[%clk 0:01:09.4]} 24. Rf2 {[%clk 0:01:00.9]} 24... Rxd6 {[%clk 0:01:06.8]} 25.
Rxd6 {[%clk 0:01:00.6]} 25... Nxd6 {[%clk 0:01:06.7]} 26. Bd5 {[%clk 0:01:00.4]}
26... Re8 {[%clk 0:00:59.7]} 27. h3 {[%clk 0:00:55.2]} 27... b5 {[%clk
0:00:49.3]} 28. Bc6 {[%clk 0:00:49.7]} 28... Rb8 {[%clk 0:00:46.2]} 29. b4
{[%clk 0:00:41.4]} 29... axb4 {[%clk 0:00:44.4]} 30. axb4 {[%clk 0:00:42.3]}
30... Bc4 {[%clk 0:00:44.8]} 31. Rd2 {[%clk 0:00:41.1]} 31... Nf5 {[%clk
0:00:34.9]} 32. Ne4 {[%clk 0:00:41]} 32... Rc8 {[%clk 0:00:26.5]} 33. Nxg5
{[%clk 0:00:40.3]} 33... f6 {[%clk 0:00:24.3]} 34. Bd7 {[%clk 0:00:37]} 34...
Ra8 {[%clk 0:00:08.8]} 35. Bxf5 {[%clk 0:00:36.4]} 35... fxg5 {[%clk 0:00:09.3]}
36. Be4 {[%clk 0:00:31.9]} 36... Kf7 {[%clk 0:00:09.2]} 37. Bxa8 {[%clk
0:00:31.1]} 1-0

[Event "*** Titled Tuesday Blitz"]
[Site "Chess.com"]
[Date "2020.11.10"]
[Round "11"]
[White "KononenkoD"]
[Black "Unknown_IM"]
[Result "1-0"]
[WhiteElo "2619"]
[BlackElo "2399"]
[TimeControl "180+1"]
[EndTime "12:12:46 PST"]
[Termination "KononenkoD won by checkmate"]

1. d4 {[%clk 0:02:57.8]} 1... Nf6 {[%clk 0:02:58.1]} 2. c4 {[%clk 0:02:58.1]}
2... c5 {[%clk 0:02:57.6]} 3. Nf3 {[%clk 0:02:58]} 3... cxd4 {[%clk 0:02:56.2]}
4. Nxd4 {[%clk 0:02:58.9]} 4... e5 {[%clk 0:02:56.8]} 5. Nb5 {[%clk 0:02:58]}
5... d5 {[%clk 0:02:56.9]} 6. cxd5 {[%clk 0:02:58.6]} 6... Bc5 {[%clk
0:02:57.3]} 7. e3 {[%clk 0:02:55.7]} 7... O-O {[%clk 0:02:53.3]} 8. N5c3 {[%clk
0:02:55.5]} 8... e4 {[%clk 0:02:49.3]} 9. Nd2 {[%clk 0:02:53.2]} 9... Qe7 {[%clk
0:02:39]} 10. a3 {[%clk 0:02:52.1]} 10... Bf5 {[%clk 0:02:30.6]} 11. b4 {[%clk
0:02:51.8]} 11... Bd6 {[%clk 0:02:27.2]} 12. Bb2 {[%clk 0:02:51.1]} 12... Nbd7
{[%clk 0:02:24.8]} 13. Be2 {[%clk 0:02:51.4]} 13... Ne5 {[%clk 0:02:14.2]} 14.
Nb3 {[%clk 0:02:28.6]} 14... Rac8 {[%clk 0:02:02.8]} 15. Nd4 {[%clk 0:02:26]}
15... Bg6 {[%clk 0:02:01.4]} 16. O-O {[%clk 0:02:14.1]} 16... Rfd8 {[%clk
0:01:51.4]} 17. Rc1 {[%clk 0:01:53.3]} 17... Bb8 {[%clk 0:01:49.8]} 18. Qb3
{[%clk 0:01:51.5]} 18... a6 {[%clk 0:01:41.9]} 19. h3 {[%clk 0:01:47.7]} 19...
Qd6 {[%clk 0:01:39.9]} 20. g3 {[%clk 0:01:39.3]} 20... h5 {[%clk 0:01:23.4]} 21.
h4 {[%clk 0:01:31.2]} 21... Neg4 {[%clk 0:01:23.2]} 22. Bxg4 {[%clk 0:01:26.6]}
22... Nxg4 {[%clk 0:01:22.1]} 23. Nce2 {[%clk 0:01:27]} 23... f6 {[%clk
0:00:46.2]} 24. Ne6 {[%clk 0:01:00.1]} 24... Re8 {[%clk 0:00:45.2]} 25. N2f4
{[%clk 0:00:52.1]} 25... Bf7 {[%clk 0:00:43.6]} 26. Rxc8 {[%clk 0:00:45.6]}
26... Rxc8 {[%clk 0:00:42.9]} 27. Rd1 {[%clk 0:00:45.7]} 27... Ne5 {[%clk
0:00:20.9]} 28. Kg2 {[%clk 0:00:41.9]} 28... Nf3 {[%clk 0:00:19.9]} 29. b5
{[%clk 0:00:28.2]} 29... axb5 {[%clk 0:00:19.3]} 30. Qxb5 {[%clk 0:00:28.7]}
30... g5 {[%clk 0:00:19.3]} 31. hxg5 {[%clk 0:00:25.3]} 31... fxg5 {[%clk
0:00:20.2]} 32. Nxg5 {[%clk 0:00:22.2]} 32... Nxg5 {[%clk 0:00:19.6]} 33. Qxb7
{[%clk 0:00:21.1]} 33... Rd8 {[%clk 0:00:19.1]} 34. Rc1 {[%clk 0:00:16.3]} 34...
Bxd5 {[%clk 0:00:13]} 35. Qg7# {[%clk 0:00:12.2]} 1-0

[Event "*** Titled Tuesday Blitz"]
[Site "Chess.com"]
[Date "2020.11.10"]
[Round "11"]
[White "dennisodessa"]
[Black "temus_galaktionov"]
[Result "0-1"]
[WhiteElo "2459"]
[BlackElo "2618"]
[TimeControl "180+1"]
[EndTime "12:12:46 PST"]
[Termination "temus_galaktionov won on time"]

1. d4 {[%clk 0:01:20.2]} 1... c6 {[%clk 0:02:42.7]} 2. c4 {[%clk 0:01:17]} 2...
g6 {[%clk 0:02:43.6]} 3. Nc3 {[%clk 0:01:16.5]} 3... Bg7 {[%clk 0:02:42]} 4. e4
{[%clk 0:00:47.6]} 4... d6 {[%clk 0:02:41.7]} 5. Be3 {[%clk 0:00:44.7]} 5... Nd7
{[%clk 0:02:37.9]} 6. Qd2 {[%clk 0:00:44.5]} 6... e5 {[%clk 0:02:37.2]} 7. d5
{[%clk 0:00:45.2]} 7... c5 {[%clk 0:02:37.2]} 8. Bd3 {[%clk 0:00:44.7]} 8... Ne7
{[%clk 0:02:37.1]} 9. f3 {[%clk 0:00:40.8]} 9... f5 {[%clk 0:02:37.1]} 10. Bh6
{[%clk 0:00:37.9]} 10... Bf6 {[%clk 0:02:36.6]} 11. exf5 {[%clk 0:00:33.1]}
11... gxf5 {[%clk 0:02:36.2]} 12. Nge2 {[%clk 0:00:31.9]} 12... Nf8 {[%clk
0:02:29.5]} 13. O-O-O {[%clk 0:00:29.2]} 13... Nfg6 {[%clk 0:02:23.6]} 14. g3
{[%clk 0:00:24.3]} 14... a6 {[%clk 0:02:21.3]} 15. h4 {[%clk 0:00:21.8]} 15...
Bd7 {[%clk 0:02:17]} 16. Bg5 {[%clk 0:00:18.2]} 16... Nc8 {[%clk 0:02:12.5]} 17.
Bxf6 {[%clk 0:00:11.8]} 17... Qxf6 {[%clk 0:02:13.4]} 18. Qg5 {[%clk 0:00:12.2]}
18... Kf7 {[%clk 0:02:09.9]} 19. g4 {[%clk 0:00:05.9]} 19... f4 {[%clk 0:02:04]}
20. Qxf6+ {[%clk 0:00:04.6]} 20... Kxf6 {[%clk 0:02:04.9]} 21. Ne4+ {[%clk
0:00:05.5]} 21... Ke7 {[%clk 0:02:05]} 22. N2c3 {[%clk 0:00:06.4]} 22... b5
{[%clk 0:02:04.6]} 23. b3 {[%clk 0:00:05.5]} 23... bxc4 {[%clk 0:01:56.7]} 24.
bxc4 {[%clk 0:00:04.3]} 24... Nb6 {[%clk 0:01:56.9]} 25. Kc2 {[%clk 0:00:05.2]}
25... Rhb8 {[%clk 0:01:57]} 26. Rb1 {[%clk 0:00:05.4]} 26... Na4 {[%clk
0:01:54.7]} 27. h5 {[%clk 0:00:04.6]} 27... Nf8 {[%clk 0:01:52.5]} 28. Rb3
{[%clk 0:00:03.4]} 28... Nxc3 {[%clk 0:01:51.5]} 29. Kxc3 {[%clk 0:00:03.1]}
29... Rxb3+ {[%clk 0:01:42]} 30. axb3 {[%clk 0:00:03.5]} 30... a5 {[%clk
0:01:42.1]} 31. Ra1 {[%clk 0:00:04.4]} 31... a4 {[%clk 0:01:39.3]} 32. bxa4
{[%clk 0:00:04.3]} 32... Rxa4 {[%clk 0:01:40.2]} 33. Rxa4 {[%clk 0:00:04.2]}
33... Bxa4 {[%clk 0:01:41.1]} 34. Nd2 {[%clk 0:00:04.3]} 34... h6 {[%clk
0:01:39.1]} 35. Bc2 {[%clk 0:00:05]} 35... Be8 {[%clk 0:01:36.2]} 36. Bf5 {[%clk
0:00:05.1]} 36... Bd7 {[%clk 0:01:35.6]} 37. Be4 {[%clk 0:00:04.6]} 37... Ba4
{[%clk 0:01:34.4]} 38. Bc2 {[%clk 0:00:04.5]} 38... Bd7 {[%clk 0:01:24.4]} 39.
Kb3 {[%clk 0:00:03]} 39... Bc8 {[%clk 0:01:17.4]} 40. Ka3 {[%clk 0:00:02.7]}
40... Nd7 {[%clk 0:01:16.6]} 41. Bf5 {[%clk 0:00:02.9]} 41... Nb6 {[%clk
0:01:17]} 42. Bxc8 {[%clk 0:00:02.6]} 42... Nxc8 {[%clk 0:01:17.9]} 43. Ka4
{[%clk 0:00:03.1]} 43... Nb6+ {[%clk 0:01:17.2]} 44. Kb5 {[%clk 0:00:03.4]}
44... Nd7 {[%clk 0:01:17.6]} 45. Ne4 {[%clk 0:00:03.8]} 45... Nf6 {[%clk
0:01:17.6]} 46. Kc6 {[%clk 0:00:02.4]} 46... Nxe4 {[%clk 0:01:17.4]} 47. fxe4
{[%clk 0:00:02.6]} 47... f3 {[%clk 0:01:17.1]} 48. g5 {[%clk 0:00:03.5]} 48...
f2 {[%clk 0:01:15.9]} 49. gxh6 {[%clk 0:00:02.4]} 49... f1=Q {[%clk 0:01:14.1]}
50. h7 {[%clk 0:00:02.6]} 50... Qf8 {[%clk 0:01:14.1]} 0-1